[Event "XI Paracin Festival 2018"]
[Site "Paracin"]
[Date "2018.07.10"]
[Round "5"]
[White "Uuriintuya, Uurtsaikh"]
[Black "Konaplev, Anton"]
[Result "1/2-1/2"]
[ECO "C07"]
[WhiteElo "2158"]
[BlackElo "2316"]
[Annotator "ChessBase"]
[PlyCount "101"]
[EventDate "2018.07.06"]
[EventType "swiss"]
[EventCountry "SRB"]
[SourceTitle "playchess.com"]
[Source "ChessBase"]
[SourceQuality "1"]
[TimeControl "5400+30"]

1. e4 {[%emt 0:00:00]} e6 {[%emt 0:00:00]} 2. d4 {[%emt 0:00:00]} d5 {[%emt 0:00:00]} 3. Nd2 {[%emt 0:00:00]} c5 {[%emt 0:00:11]} 4. Ngf3 {[%emt 0:00:50]} Nf6 {[%emt 0:00:10]} 5. exd5 {[%emt 0:00:33]} exd5 {[%emt 0:00:37]} 6. Bb5+ {[%emt 0:01:15]} Bd7 {[%emt 0:00:09]} 7. Bxd7+ {[%emt 0:00:37]} Nbxd7 {[%emt 0:00:07]} 8. dxc5 {[%emt 0:00:29]} Qe7+ {[%emt 0:02:31]} 9. Qe2 {[%emt 0:00:20]} Qxe2+ {[%emt 0:01:50]} 10. Kxe2 {[%emt 0:00:07]} Bxc5 {[%emt 0:05:10]} 11. Nb3 {[%emt 0:01:43]} Bb6 {[%emt 0:01:05]} 12. Re1 {[%emt 0:07:53]} O-O {[%emt 0:04:59]} 13. Bf4 {[%emt 0:06:36]} Ne4 {[%emt 0:13:55]} 14. Nfd4 {[%emt 0:02:42]} Rac8 {[%emt 0:05:59]} 15. f3 {[%emt 0:11:44]} Nec5 {[%emt 0:02:05]} 16. Kd2 {[%emt 0:00:12]} Nxb3+ {[%emt 0:12:58]} 17. Nxb3 {[%emt 0:00:10]} Rfe8 {[%emt 0:02:27]} 18. Rad1 {[%emt 0:06:27]} Nf8 {[%emt 0:06:55]} 19. c3 {[%emt 0:07:11]} Ne6 {[%emt 0:14:13]} 20. Be3 {[%emt 0:00:51]} Bxe3+ {[%emt 0:00:31]} 21. Rxe3 {[%emt 0:01:07]} Kf8 {[%emt 0:01:52]} 22. g3 {[%emt 0:00:30]} Nc7 {[%emt 0:05:06]} 23. Rde1 {[%emt 0:05:08]} Rxe3 {[%emt 0:01:11]} 24. Rxe3 {[%emt 0:00:06]} Ne6 {[%emt 0:01:13]} 25. f4 g6 {[%emt 0:02:08]} 26. Kd3 {[%emt 0:08:16]} Ke7 {[%emt 0:03:05]} 27. Nd4 {[%emt 0:05:47]} Kd6 {[%emt 0:01:42]} 28. Nxe6 {[%emt 0:02:33]} fxe6 {[%emt 0:00:01]} 29. Re5 {[%emt 0:01:29]} b5 {[%emt 0:05:20]} 30. h4 {[%emt 0:02:01]} a5 {[%emt 0:01:18]} 31. Kd4 {[%emt 0:04:25]} Rc4+ {[%emt 0:01:20]} 32. Kd3 {[%emt 0:00:07]} Rc7 {[%emt 0:03:16]} 33. b3 {[%emt 0:06:13]} a4 {[%emt 0:00:30]} 34. Kd4 {[%emt 0:05:18]} axb3 {[%emt 0:00:14]} 35. axb3 {[%emt 0:00:30]} Ra7 {[%emt 0:00:27]} 36. h5 {[%emt 0:00:23]} Ra1 {[%emt 0:02:53]} 37. hxg6 {[%emt 0:00:23]} hxg6 {[%emt 0:00:01]} 38. Rg5 {[%emt 0:00:12]} Rd1+ {[%emt 0:00:42]} 39. Ke3 {[%emt 0:00:02]} b4 {[%emt 0:00:48]} 40. cxb4 {[%emt 0:05:05]} Rb1 {[%emt 0:00:01]} 41. Rxg6 {[%emt 0:00:20]} Rxb3+ {[%emt 0:00:01]} 42. Kd2 {[%emt 0:03:47]} Ke7 {[%emt 0:01:11]} 43. Kc2 {[%emt 0:02:33]} Rxb4 {[%emt 0:00:34]} 44. Kd3 {[%emt 0:00:13]} Kf7 {[%emt 0:00:04]} 45. Rg5 {[%emt 0:00:04]} Kf6 {[%emt 0:00:14]} 46. Rg8 {[%emt 0:00:12]} Kf7 {[%emt 0:00:28]} 47. Rg5 {[%emt 0:00:06]} Re4 {[%emt 0:00:29]} 48. Rh5 {[%emt 0:00:44]} Re1 {[%emt 0:00:25]} 49. Kd4 {[%emt 0:00:42]} Rg1 {[%emt 0:00:45]} 50. f5 {[%emt 0:01:14]} Rxg3 {[%emt 0:00:42]} 51. fxe6+ {[%emt 0:00:08]} 1/2-1/2

[Event "XI Paracin Festival 2018"]
[Site "Paracin"]
[Date "2018.07.10"]
[Round "5"]
[White "Bojicic, Andjela"]
[Black "Djordjevic, Vuk"]
[Result "0-1"]
[ECO "E21"]
[WhiteElo "2028"]
[BlackElo "2403"]
[Annotator "ChessBase"]
[PlyCount "186"]
[EventDate "2018.07.06"]
[EventType "swiss"]
[EventCountry "SRB"]
[SourceTitle "playchess.com"]
[Source "ChessBase"]
[SourceQuality "1"]
[TimeControl "5400+30"]

1. d4 {[%emt 0:00:00]} Nf6 {[%emt 0:00:00]} 2. c4 {[%emt 0:00:00]} e6 {[%emt 0:00:00]} 3. Nc3 {[%emt 0:00:00]} Bb4 {[%emt 0:00:00]} 4. Nf3 {[%emt 0:00:00]} O-O {[%emt 0:00:14]} 5. Bg5 {[%emt 0:00:31]} d5 {[%emt 0:01:39]} 6. cxd5 {[%emt 0:00:56]} exd5 {[%emt 0:02:28]} 7. e3 {[%emt 0:00:22]} c5 {[%emt 0:10:36]} 8. dxc5 {[%emt 0:01:45]} Nbd7 {[%emt 0:06:11]} 9. Bxf6 {[%emt 0:19:09]} Nxf6 {[%emt 0:05:42]} 10. Bd3 {[%emt 0:08:19]} Bg4 {[%emt 0:03:55]} 11. O-O {[%emt 0:02:57]} Bxc3 {[%emt 0:05:01]} 12. bxc3 {[%emt 0:00:04]} Qa5 {[%emt 0:02:22]} 13. Be2 {[%emt 0:05:45]} Qxc5 {[%emt 0:07:59]} 14. Rb1 {[%emt 0:06:56]} b6 {[%emt 0:01:58]} 15. Qd4 {[%emt 0:08:37]} Rac8 {[%emt 0:07:30]} 16. Rfc1 {[%emt 0:02:58]} Qe7 {[%emt 0:09:54]} 17. c4 {[%emt 0:07:52]} Qa3 {[%emt 0:02:34]} 18. Ra1 {[%emt 0:05:17]} Rc5 {[%emt 0:04:08]} 19. Re1 {[%emt 0:02:01]} Bxf3 {[%emt 0:01:27]} 20. gxf3 {[%emt 0:00:04]} Rfc8 {[%emt 0:04:22]} 21. cxd5 {[%emt 0:00:18]} Rxd5 {[%emt 0:00:09]} 22. Qf4 {[%emt 0:01:54]} h6 {[%emt 0:03:56]} 23. Bc4 {[%emt 0:08:32]} Rg5+ {[%emt 0:04:46]} 24. Kh1 {[%emt 0:00:29]} b5 {[%emt 0:01:47]} 25. Bb3 {[%emt 0:01:17]} Qb2 {[%emt 0:01:03]} 26. Rf1 {[%emt 0:00:21]} a5 {[%emt 0:04:10]} 27. Rab1 {[%emt 0:00:15]} Qe5 {[%emt 0:02:10]} 28. Qxe5 {[%emt 0:01:42]} Rxe5 {[%emt 0:00:04]} 29. Bd1 {[%emt 0:01:38]} Rc3 {[%emt 0:01:51]} 30. Be2 {[%emt 0:01:29]} b4 {[%emt 0:00:13]} 31. Bd1 {[%emt 0:01:31]} Kf8 {[%emt 0:02:49]} 32. Bb3 {[%emt 0:01:02]} Ke7 {[%emt 0:02:26]} 33. Rfd1 {[%emt 0:00:21]} Rec5 {[%emt 0:00:51]} 34. Kg2 {[%emt 0:02:15]} Rc7 {[%emt 0:00:31]} 35. Kf1 {[%emt 0:00:29]} Ra7 {[%emt 0:00:27]} 36. Rdc1 {[%emt 0:01:07]} Rxc1+ {[%emt 0:00:45]} 37. Rxc1 {[%emt 0:00:01]} a4 {[%emt 0:01:13]} 38. Bc4 {[%emt 0:01:50]} Rc7 {[%emt 0:00:44]} 39. Ke2 {[%emt 0:00:35]} b3 {[%emt 0:00:59]} 40. axb3 {[%emt 0:00:24]} axb3 {[%emt 0:00:01]} 41. Kd3 {[%emt 0:00:23]} Nd7 {[%emt 0:00:24]} 42. Kc3 {[%emt 0:06:23]} Ne5 {[%emt 0:00:29]} 43. Kxb3 {[%emt 0:00:09]} Nxf3 {[%emt 0:00:35]} 44. Rd1 {[%emt 0:00:38]} Ng5 {[%emt 0:00:57]} 45. Rd4 {[%emt 0:01:56]} Nf3 {[%emt 0:00:33]} 46. Rd1 {[%emt 0:00:02]} g6 {[%emt 0:00:30]} 47. Be2 {[%emt 0:00:58]} Ng5 {[%emt 0:00:03]} 48. Rd4 {[%emt 0:01:33]} Ne6 {[%emt 0:00:29]} 49. Rc4 {[%emt 0:00:25]} Ra7 {[%emt 0:00:01]} 50. Rc1 {[%emt 0:00:41]} Ng5 {[%emt 0:00:46]} 51. Kc2 {[%emt 0:00:41]} Ne4 {[%emt 0:00:49]} 52. f3 {[%emt 0:00:25]} Nd6 {[%emt 0:00:21]} 53. Kd2 {[%emt 0:00:30]} Ra5 {[%emt 0:00:15]} 54. Ke1 {[%emt 0:00:31]} Rh5 {[%emt 0:00:36]} 55. Rc7+ {[%emt 0:00:35]} Kd8 {[%emt 0:00:54]} 56. Ra7 {[%emt 0:00:10]} Rxh2 {[%emt 0:00:42]} 57. e4 {[%emt 0:00:23]} f6 {[%emt 0:00:02]} 58. Kf1 {[%emt 0:00:43]} g5 {[%emt 0:01:01]} 59. Bd3 {[%emt 0:00:31]} Rd2 {[%emt 0:00:17]} 60. Be2 {[%emt 0:00:04]} h5 {[%emt 0:00:44]} 61. Kf2 {[%emt 0:00:49]} Ke8 {[%emt 0:00:32]} 62. Ke3 {[%emt 0:00:26]} Rb2 {[%emt 0:00:22]} 63. Rh7 {[%emt 0:00:54]} h4 {[%emt 0:00:12]} 64. Rh6 {[%emt 0:00:29]} Kf7 {[%emt 0:00:22]} 65. Rh8 {[%emt 0:00:33]} Kg7 {[%emt 0:00:40]} 66. Rd8 {[%emt 0:00:25]} Nf7 {[%emt 0:00:28]} 67. Rd2 {[%emt 0:00:28]} Rb3+ {[%emt 0:00:45]} 68. Kf2 {[%emt 0:00:02]} Ne5 {[%emt 0:00:10]} 69. Ra2 {[%emt 0:00:08]} Rb7 {[%emt 0:00:30]} 70. Kg2 {[%emt 0:00:19]} Rc7 {[%emt 0:00:46]} 71. Kf2 {[%emt 0:00:16]} Ng6 {[%emt 0:00:12]} 72. Kg2 {[%emt 0:00:22]} Nf4+ {[%emt 0:00:05]} 73. Kf2 {[%emt 0:00:04]} Kg6 {[%emt 0:00:36]} 74. Bb5 {[%emt 0:00:09]} Kf7 {[%emt 0:00:39]} 75. Rd2 {[%emt 0:00:23]} Ke7 {[%emt 0:00:21]} 76. Be2 {[%emt 0:00:57]} Rc5 {[%emt 0:00:48]} 77. Ra2 {[%emt 0:00:20]} Ke6 {[%emt 0:00:28]} 78. Rd2 {[%emt 0:00:08]} Ke5 {[%emt 0:00:11]} 79. Ra2 {[%emt 0:00:17]} Nh5 {[%emt 0:00:43]} 80. Rb2 {[%emt 0:01:36]} Kf4 {[%emt 0:01:11]} 81. Rb5 {[%emt 0:01:12]} Re5 {[%emt 0:00:29]} 82. Rb6 {[%emt 0:00:17]} Rc5 {[%emt 0:00:32]} 83. Rb5 {[%emt 0:00:27]} Re5 {[%emt 0:00:01]} 84. Rb6 {[%emt 0:00:05]} Ra5 {[%emt 0:00:36]} 85. Rb5 {[%emt 0:01:04]} Rxb5 {[%emt 0:00:01]} 86. Bxb5 {[%emt 0:00:05]} Ke5 {[%emt 0:00:41]} 87. Bd7 {[%emt 0:00:25]} Ng7 {[%emt 0:00:47]} 88. Ke3 {[%emt 0:00:53]} Ne6 {[%emt 0:00:04]} 89. Kf2 {[%emt 0:00:11]} Nc5 {[%emt 0:00:13]} 90. Bf5 {[%emt 0:00:15]} Kf4 {[%emt 0:00:15]} 91. Kg2 {[%emt 0:01:05]} Nd3 {[%emt 0:00:25]} 92. Bg4 {[%emt 0:00:15]} Ke3 {[%emt 0:00:20]} 93. Kf1 {[%emt 0:00:33]} Ne5 {[%emt 0:00:06]} 0-1

[Event "XI Paracin Festival 2018"]
[Site "Paracin"]
[Date "2018.07.10"]
[Round "6"]
[White "Perunovic, Milos"]
[Black "Kathmale, Sameer"]
[Result "1-0"]
[ECO "B12"]
[WhiteElo "2596"]
[BlackElo "2323"]
[Annotator "ChessBase"]
[PlyCount "57"]
[EventDate "2018.07.06"]
[EventType "swiss"]
[EventCountry "SRB"]
[SourceTitle "playchess.com"]
[Source "ChessBase"]
[SourceQuality "1"]
[TimeControl "5400+30"]

1. e4 {[%emt 0:00:00]} c6 {[%emt 0:00:48]} 2. d4 {[%emt 0:00:03]} d5 {[%emt 0:00:19]} 3. e5 {[%emt 0:00:18]} Bf5 {[%emt 0:00:08]} 4. h4 {[%emt 0:02:19]} h5 {[%emt 0:00:13]} 5. c4 {[%emt 0:00:24]} e6 {[%emt 0:00:28]} 6. Nc3 {[%emt 0:00:20]} Ne7 {[%emt 0:00:10]} 7. Nge2 {[%emt 0:06:15]} Nd7 {[%emt 0:02:24]} 8. Ng3 {[%emt 0:01:20]} Bg6 {[%emt 0:00:02]} 9. cxd5 {[%emt 0:02:05]} Nxd5 {[%emt 0:00:48]} 10. Be2 {[%emt 0:04:46]} Qa5 {[%emt 0:12:11]} 11. Bd2 {[%emt 0:02:54]} Qb6 {[%emt 0:03:06]} 12. Nxd5 {[%emt 0:08:12]} cxd5 {[%emt 0:02:43]} 13. Bc3 {[%emt 0:02:15]} Be7 {[%emt 0:05:44]} 14. a4 {[%emt 0:10:17]} a5 {[%emt 0:04:29]} 15. Nxh5 {[%emt 0:02:32]} Bxh5 {[%emt 0:05:37]} 16. Bxh5 {[%emt 0:00:13]} g6 {[%emt 0:00:19]} 17. Be2 {[%emt 0:00:11]} Rxh4 {[%emt 0:00:52]} 18. Rxh4 {[%emt 0:00:25]} Bxh4 {[%emt 0:00:03]} 19. Bb5 {[%emt 0:00:28]} Qd8 {[%emt 0:09:01]} 20. Qf3 {[%emt 0:06:30]} Be7 {[%emt 0:12:58]} 21. Ke2 {[%emt 0:01:51]} Bf8 {[%emt 0:01:32]} 22. Rh1 {[%emt 0:02:09]} Bg7 {[%emt 0:03:23]} 23. Bd2 {[%emt 0:04:59]} Qe7 {[%emt 0:08:05]} 24. Rh7 {[%emt 0:02:35]} Qf8 {[%emt 0:01:09]} 25. Bh6 {[%emt 0:08:18]} Bxh6 {[%emt 0:01:13]} 26. Bxd7+ {[%emt 0:00:05]} Kd8 {[%emt 0:04:41]} 27. Rxf7 {[%emt 0:01:23]} Qb4 {[%emt 0:00:21]} 28. Qf6+ {[%emt 0:00:17]} Kc7 {[%emt 0:00:02]} 29. Bc6+ {[%emt 0:00:53]} 1-0

[Event "XI Paracin Festival 2018"]
[Site "Paracin"]
[Date "2018.07.10"]
[Round "6"]
[White "Atalik, Suat"]
[Black "Raja Rithvik R"]
[Result "1/2-1/2"]
[ECO "D30"]
[WhiteElo "2509"]
[BlackElo "2343"]
[Annotator "ChessBase"]
[PlyCount "42"]
[EventDate "2018.07.06"]
[EventType "swiss"]
[EventCountry "SRB"]
[SourceTitle "playchess.com"]
[Source "ChessBase"]
[SourceQuality "1"]
[TimeControl "5400+30"]

1. d4 {[%emt 0:00:00]} d5 {[%emt 0:00:00]} 2. c4 {[%emt 0:00:00]} e6 {[%emt 0:00:00]} 3. Nf3 {[%emt 0:01:06]} a6 {[%emt 0:00:03]} 4. e3 {[%emt 0:00:39]} Nf6 {[%emt 0:00:10]} 5. Nc3 {[%emt 0:00:48]} b6 {[%emt 0:00:07]} 6. Qa4+ {[%emt 0:04:26]} c6 {[%emt 0:00:27]} 7. Qc2 {[%emt 0:00:49]} Bb7 {[%emt 0:06:28]} 8. a3 {[%emt 0:07:31]} Nbd7 {[%emt 0:02:38]} 9. cxd5 {[%emt 0:04:13]} cxd5 {[%emt 0:00:47]} 10. Bd3 {[%emt 0:00:06]} Bd6 {[%emt 0:00:36]} 11. O-O {[%emt 0:00:39]} O-O {[%emt 0:00:24]} 12. Bd2 {[%emt 0:04:08]} h6 {[%emt 0:00:26]} 13. Rac1 {[%emt 0:01:08]} Rc8 {[%emt 0:00:39]} 14. Qb1 {[%emt 0:00:35]} Qe7 {[%emt 0:00:36]} 15. Ne2 {[%emt 0:02:47]} b5 {[%emt 0:01:13]} 16. Ba5 {[%emt 0:00:51]} Ne4 {[%emt 0:03:53]} 17. Rxc8 {[%emt 0:01:29]} Rxc8 {[%emt 0:00:08]} 18. Rc1 {[%emt 0:00:42]} Qe8 {[%emt 0:01:11]} 19. Rxc8 {[%emt 0:04:36]} Qxc8 {[%emt 0:00:07]} 20. Qc2 {[%emt 0:00:22]} Qxc2 {[%emt 0:00:59]} 21. Bxc2 {[%emt 0:00:04]} Kf8 {[%emt 0:00:30]} 1/2-1/2

[Event "XI Paracin Festival 2018"]
[Site "Paracin"]
[Date "2018.07.10"]
[Round "6"]
[White "Lorparizangeneh, Shahin"]
[Black "Ikeda, Junta"]
[Result "1-0"]
[ECO "A80"]
[WhiteElo "2493"]
[BlackElo "2437"]
[Annotator "ChessBase"]
[PlyCount "77"]
[EventDate "2018.07.06"]
[EventType "swiss"]
[EventCountry "SRB"]
[SourceTitle "playchess.com"]
[Source "ChessBase"]
[SourceQuality "1"]
[TimeControl "5400+30"]

1. d4 {[%emt 0:02:23]} f5 {[%emt 0:00:00]} 2. Bg5 {[%emt 0:00:21]} h6 {[%emt 0:00:00]} 3. Bh4 {[%emt 0:00:05]} g5 {[%emt 0:00:00]} 4. e3 {[%emt 0:00:09]} Nf6 {[%emt 0:00:00]} 5. Bg3 {[%emt 0:00:03]} d6 {[%emt 0:00:00]} 6. h4 {[%emt 0:00:10]} Rg8 {[%emt 0:00:13]} 7. hxg5 {[%emt 0:00:11]} hxg5 {[%emt 0:00:05]} 8. Nc3 {[%emt 0:00:26]} e6 {[%emt 0:00:16]} 9. Qd2 {[%emt 0:01:52]} Qe7 {[%emt 0:02:48]} 10. O-O-O {[%emt 0:01:33]} Nc6 {[%emt 0:00:41]} 11. f3 {[%emt 0:01:05]} Bd7 {[%emt 0:03:05]} 12. e4 {[%emt 0:00:48]} fxe4 {[%emt 0:03:29]} 13. fxe4 {[%emt 0:04:41]} O-O-O {[%emt 0:00:59]} 14. d5 {[%emt 0:23:55]} exd5 {[%emt 0:05:06]} 15. exd5 {[%emt 0:00:17]} Ne5 {[%emt 0:00:14]} 16. Qd4 {[%emt 0:03:21]} Kb8 {[%emt 0:01:59]} 17. Nb5 {[%emt 0:10:01]} Bxb5 {[%emt 0:06:55]} 18. Bxb5 {[%emt 0:00:12]} Bg7 {[%emt 0:05:46]} 19. Nh3 {[%emt 0:08:03]} Nfd7 {[%emt 0:35:33]} 20. Kb1 {[%emt 0:09:26]} a6 {[%emt 0:05:29]} 21. Be2 {[%emt 0:01:25]} Nf3 {[%emt 0:05:44]} 22. Qf2 {[%emt 0:03:00]} Nd4 {[%emt 0:06:12]} 23. Bg4 {[%emt 0:05:10]} Rdf8 {[%emt 0:08:06]} 24. Qe1 {[%emt 0:04:18]} Qd8 {[%emt 0:00:55]} 25. Bf2 {[%emt 0:03:06]} Nf5 {[%emt 0:02:43]} 26. Rf1 {[%emt 0:00:39]} Re8 {[%emt 0:04:09]} 27. Qd2 {[%emt 0:01:58]} Qf6 {[%emt 0:02:07]} 28. c3 {[%emt 0:00:26]} Rgf8 {[%emt 0:00:49]} 29. Bd4 {[%emt 0:01:19]} Nxd4 {[%emt 0:00:30]} 30. Rxf6 {[%emt 0:00:15]} Nxf6 {[%emt 0:00:15]} 31. Qxg5 {[%emt 0:02:08]} Nxg4 {[%emt 0:00:20]} 32. Qxg7 {[%emt 0:00:48]} Nf5 {[%emt 0:00:57]} 33. Qxg4 {[%emt 0:00:16]} Ne3 {[%emt 0:00:04]} 34. Qe2 {[%emt 0:00:20]} Nxd1 {[%emt 0:00:28]} 35. Qxd1 {[%emt 0:00:02]} Re3 {[%emt 0:00:57]} 36. a4 {[%emt 0:01:38]} Rfe8 {[%emt 0:00:23]} 37. Ka2 {[%emt 0:00:25]} Re2 {[%emt 0:00:16]} 38. Nf4 {[%emt 0:00:28]} Rf2 {[%emt 0:00:15]} 39. Qd4 {[%emt 0:00:21]} 1-0

[Event "XI Paracin Festival 2018"]
[Site "Paracin"]
[Date "2018.07.10"]
[Round "6"]
[White "Petrov, Martin"]
[Black "Kadric, Denis"]
[Result "1/2-1/2"]
[ECO "B00"]
[WhiteElo "2441"]
[BlackElo "2522"]
[Annotator "ChessBase"]
[PlyCount "51"]
[EventDate "2018.07.06"]
[EventType "swiss"]
[EventCountry "SRB"]
[SourceTitle "playchess.com"]
[Source "ChessBase"]
[SourceQuality "1"]
[TimeControl "5400+30"]

1. e4 {[%emt 0:00:00]} Nc6 {[%emt 0:00:00]} 2. Nc3 {[%emt 0:00:38]} Nf6 {[%emt 0:00:00]} 3. d4 {[%emt 0:01:33]} d6 {[%emt 0:00:00]} 4. f3 {[%emt 0:00:47]} e5 {[%emt 0:00:03]} 5. Nge2 {[%emt 0:00:38]} exd4 {[%emt 0:00:05]} 6. Nxd4 {[%emt 0:00:06]} Be7 {[%emt 0:00:01]} 7. Bb5 {[%emt 0:13:22]} Bd7 {[%emt 0:00:03]} 8. O-O {[%emt 0:02:23]} O-O {[%emt 0:00:07]} 9. Nxc6 {[%emt 0:07:32]} bxc6 {[%emt 0:00:27]} 10. Bc4 {[%emt 0:00:03]} Qb8 {[%emt 0:05:04]} 11. Kh1 {[%emt 0:01:39]} a5 {[%emt 0:02:33]} 12. a4 {[%emt 0:01:21]} Bc8 {[%emt 0:04:27]} 13. Ne2 {[%emt 0:10:21]} Nd7 {[%emt 0:13:10]} 14. Nd4 {[%emt 0:00:19]} Qb7 {[%emt 0:00:50]} 15. Nf5 {[%emt 0:09:28]} Bf6 {[%emt 0:00:03]} 16. g4 {[%emt 0:00:18]} Nb6 {[%emt 0:10:14]} 17. Bd3 {[%emt 0:04:59]} Bxf5 {[%emt 0:03:10]} 18. gxf5 {[%emt 0:00:52]} c5 {[%emt 0:01:01]} 19. c4 {[%emt 0:01:34]} Nd7 {[%emt 0:02:35]} 20. Rb1 {[%emt 0:01:50]} Ne5 {[%emt 0:04:46]} 21. Rg1 {[%emt 0:04:05]} Ra6 {[%emt 0:04:01]} 22. b3 {[%emt 0:07:13]} Rb6 {[%emt 0:00:35]} 23. Bb2 {[%emt 0:02:33]} Rb8 {[%emt 0:05:34]} 24. Bc2 {[%emt 0:00:45]} Kf8 {[%emt 0:02:40]} 25. Bxe5 {[%emt 0:05:23]} Bxe5 {[%emt 0:05:48]} 26. Qe1 {[%emt 0:00:56]} 1/2-1/2

[Event "XI Paracin Festival 2018"]
[Site "Paracin"]
[Date "2018.07.10"]
[Round "6"]
[White "Lajthajm, Borko"]
[Black "Marjanovic, Annamaria"]
[Result "0-1"]
[ECO "A06"]
[WhiteElo "2422"]
[BlackElo "2325"]
[Annotator "NA"]
[PlyCount "88"]
[EventDate "2018.07.06"]
[EventType "swiss"]
[EventCountry "SRB"]
[SourceTitle "playchess.com"]
[Source "ChessBase"]
[SourceQuality "1"]
[TimeControl "5400+30"]

1. Nf3 {[%emt 0:00:00]} d5 {[%emt 0:00:00]} 2. g3 {[%emt 0:00:00]} Bg4 {[%emt 0:00:00]} 3. Bg2 {[%emt 0:00:00]} Nd7 {[%emt 0:00:07]} 4. c4 {[%emt 0:00:40]} e6 {[%emt 0:00:56]} 5. cxd5 {[%emt 0:00:53]} exd5 {[%emt 0:00:12]} 6. Qa4 {[%emt 0:00:19]} Ngf6 {[%emt 0:04:27]} 7. Nc3 {[%emt 0:02:01]} c6 {[%emt 0:02:50]} 8. d4 {[%emt 0:00:12]} Bd6 {[%emt 0:01:19]} 9. Nh4 {[%emt 0:02:40]} Nb6 {[%emt 0:05:02]} 10. Qc2 {[%emt 0:00:43]} Qd7 {[%emt 0:02:35]} 11. O-O {[%emt 0:05:39]} O-O {[%emt 0:03:14]} 12. Bg5 {[%emt 0:00:59]} Be7 {[%emt 0:00:34]} 13. Rad1 {[%emt 0:02:32]} h6 {[%emt 0:01:09]} 14. Bc1 {[%emt 0:00:21]} Ne8 {[%emt 0:05:29]} 15. Nf3 {[%emt 0:04:55]} Bf5 {[%emt 0:00:48]} 16. Qb3 {[%emt 0:00:17]} Nd6 {[%emt 0:00:35]} 17. Ne5 {[%emt 0:01:05]} Qc7 {[%emt 0:02:07]} 18. g4 {[%emt 0:02:20]} Bh7 {[%emt 0:05:05]} 19. Bf4 {[%emt 0:01:32]} Qc8 {[%emt 0:01:50]} 20. f3 {[%emt 0:07:47]} Kh8 {[%emt 0:02:00]} 21. a4 {[%emt 0:02:02]} Bg5 {[%emt 0:02:56]} 22. Bxg5 {[%emt 0:06:32]} hxg5 {[%emt 0:00:05]} 23. e4 {[%emt 0:00:24]} f6 {[%emt 0:06:25]} 24. Nd3 {[%emt 0:07:24]} dxe4 {[%emt 0:01:17]} 25. Nxe4 {[%emt 0:01:45]} Bg8 {[%emt 0:08:30]} 26. Qb4 {[%emt 0:02:12]} Nxe4 {[%emt 0:01:07]} 27. fxe4 {[%emt 0:00:05]} Qxg4 {[%emt 0:02:56]} 28. Rf3 {[%emt 0:00:38]} Bf7 {[%emt 0:05:24]} 29. b3 {[%emt 0:05:27]} Rad8 {[%emt 0:04:42]} 30. Rd2 {[%emt 0:03:06]} Kg8 {[%emt 0:02:26]} 31. Rg3 {[%emt 0:03:00]} Qe6 {[%emt 0:02:14]} 32. Nc5 {[%emt 0:02:34]} Qd6 {[%emt 0:00:15]} 33. Bh3 {[%emt 0:00:27]} Nd7 {[%emt 0:02:53]} 34. Bxd7 {[%emt 0:03:00]} Rxd7 {[%emt 0:01:21]} 35. a5 {[%emt 0:00:54]} Re7 {[%emt 0:01:09]} 36. Re3 {[%emt 0:00:50]} Rd8 {[%emt 0:01:53]} 37. Rdd3 {[%emt 0:02:06]} Rde8 {[%emt 0:03:24]} 38. Qe1 {[%emt 0:04:42]} Bg6 {[%emt 0:01:02]} 39. Qb4 {[%emt 0:10:40]} Bxe4 {[%emt 0:00:54]} 40. Rd1 {[%emt 0:01:37]} Bd5 {[%emt 0:00:40]} 41. Rg3 {[%emt 0:03:39]} b6 {[%emt 0:08:04]} 42. axb6 {[%emt 0:00:10]} axb6 {[%emt 0:00:05]} 43. Nd3 {[%emt 0:00:03]} Qe6 {[%emt 0:00:38]} 44. Re1 {[%emt 0:00:21]} Qxe1+ {[%emt 0:00:51]} 0-1

[Event "XI Paracin Festival 2018"]
[Site "Paracin"]
[Date "2018.07.10"]
[Round "6"]
[White "Djordjevic, Vuk"]
[Black "Bratkovic, Jakob"]
[Result "1/2-1/2"]
[ECO "B30"]
[WhiteElo "2403"]
[BlackElo "2253"]
[Annotator "NA"]
[PlyCount "107"]
[EventDate "2018.07.06"]
[EventType "swiss"]
[EventCountry "SRB"]
[SourceTitle "playchess.com"]
[Source "ChessBase"]
[SourceQuality "1"]
[TimeControl "5400+30"]

1. e4 {[%emt 0:00:00]} c5 {[%emt 0:01:54]} 2. Nf3 {[%emt 0:00:00]} Nc6 {[%emt 0:00:05]} 3. Bb5 {[%emt 0:00:00]} d6 {[%emt 0:00:11]} 4. O-O {[%emt 0:01:25]} Bd7 {[%emt 0:00:06]} 5. Re1 {[%emt 0:02:37]} a6 {[%emt 0:00:36]} 6. Bf1 {[%emt 0:00:15]} Bg4 {[%emt 0:00:11]} 7. c3 {[%emt 0:02:57]} e5 {[%emt 0:10:50]} 8. h3 {[%emt 0:16:15]} Bxf3 {[%emt 0:00:29]} 9. Qxf3 {[%emt 0:00:09]} Be7 {[%emt 0:03:24]} 10. Na3 {[%emt 0:03:55]} Nf6 {[%emt 0:04:23]} 11. Nc4 {[%emt 0:00:08]} O-O {[%emt 0:00:56]} 12. Ne3 {[%emt 0:03:15]} Re8 {[%emt 0:03:00]} 13. a4 {[%emt 0:14:23]} Na5 {[%emt 0:13:56]} 14. Ra3 {[%emt 0:03:00]} Bf8 {[%emt 0:01:52]} 15. Nd5 {[%emt 0:08:29]} Nxd5 {[%emt 0:04:01]} 16. exd5 {[%emt 0:00:05]} c4 {[%emt 0:00:32]} 17. d3 {[%emt 0:07:20]} Qc7 {[%emt 0:09:44]} 18. dxc4 {[%emt 0:01:51]} Nxc4 {[%emt 0:01:03]} 19. Ra2 {[%emt 0:04:55]} g6 {[%emt 0:08:06]} 20. b3 {[%emt 0:03:33]} Nb6 {[%emt 0:00:13]} 21. a5 {[%emt 0:02:54]} Nd7 {[%emt 0:00:14]} 22. c4 {[%emt 0:01:30]} f5 {[%emt 0:03:32]} 23. b4 {[%emt 0:01:28]} e4 {[%emt 0:03:55]} 24. Qg3 {[%emt 0:11:15]} Ne5 {[%emt 0:01:28]} 25. Kh1 {[%emt 0:04:39]} Nd3 {[%emt 0:02:13]} 26. Rd1 {[%emt 0:00:27]} Qxc4 {[%emt 0:01:47]} 27. Rad2 {[%emt 0:01:13]} Qxb4 {[%emt 0:05:31]} 28. Bxd3 {[%emt 0:01:13]} exd3 {[%emt 0:00:21]} 29. Qxd3 {[%emt 0:02:01]} Qxa5 {[%emt 0:02:01]} 30. Bb2 {[%emt 0:00:47]} Bg7 {[%emt 0:00:26]} 31. Ba3 {[%emt 0:00:14]} Be5 {[%emt 0:01:42]} 32. Qb3 {[%emt 0:01:16]} Bf4 {[%emt 0:01:51]} 33. Bb4 {[%emt 0:00:56]} Qb5 {[%emt 0:00:07]} 34. Rd3 {[%emt 0:00:24]} Re4 {[%emt 0:01:11]} 35. Ba3 {[%emt 0:00:19]} Qd7 {[%emt 0:03:40]} 36. Qb6 {[%emt 0:01:44]} Rae8 {[%emt 0:02:17]} 37. g3 {[%emt 0:00:51]} Re1+ {[%emt 0:00:25]} 38. Rxe1 {[%emt 0:00:19]} Rxe1+ {[%emt 0:00:06]} 39. Kg2 {[%emt 0:00:53]} Be5 {[%emt 0:01:53]} 40. Bb4 {[%emt 0:00:31]} Rb1 {[%emt 0:00:44]} 41. Qa5 {[%emt 0:00:22]} b5 {[%emt 0:02:52]} 42. Bd2 {[%emt 0:00:37]} Qc8 {[%emt 0:03:33]} 43. Bg5 {[%emt 0:00:33]} b4 {[%emt 0:00:43]} 44. Qb6 {[%emt 0:00:20]} a5 {[%emt 0:01:16]} 45. Rd2 {[%emt 0:00:34]} b3 {[%emt 0:00:36]} 46. f4 {[%emt 0:00:34]} Bc3 {[%emt 0:01:07]} 47. Re2 {[%emt 0:00:26]} a4 {[%emt 0:00:48]} 48. Qb5 {[%emt 0:00:24]} Re1 {[%emt 0:00:17]} 49. Re6 {[%emt 0:00:42]} Qa8 {[%emt 0:01:18]} 50. Kh2 {[%emt 0:00:30]} Rxe6 {[%emt 0:00:44]} 51. dxe6 {[%emt 0:00:03]} b2 {[%emt 0:00:03]} 52. Qd7 {[%emt 0:00:34]} Qh1+ {[%emt 0:00:29]} 53. Kxh1 {[%emt 0:00:01]} b1=Q+ {[%emt 0:00:04]} 54. Kh2 {[%emt 0:00:29]} 1/2-1/2